fUSD/lending_fUSD_20240904
["ID","MTS","AMOUNT","RATE_DAILY","PERIOD"]
[337103210,1725432639343,-150.0,0.00014358,2]
[337103212,1725432639352,-150.0,0.0001436,2]
[337103214,1725432639362,-624.0,0.00014366,2]
[337103216,1725432639371,-931.0,0.00014366,2]
[337103218,1725432639380,-810.0,0.00014366,2]
[337103219,1725432639390,-1899.0,0.00014366,2]
[337103221,1725432639399,-552.0,0.00014366,2]
[337103223,1725432639408,-805.0,0.00014366,2]
[337103225,1725432639418,-1134.0,0.00014366,2]
[337103227,1725432639428,-3037.984,0.00014366,2]
[337103229,1725432639437,-1922.0,0.00014366,2]
[337103231,1725432639447,-248.0,0.00014366,2]
[337103233,1725432639457,-150.0,0.00014366,2]
[337103235,1725432639467,-212.24,0.00014384,2]
[337103236,1725432639477,-150.0,0.00014391,2]
[337103238,1725432639486,-1514.02322127,0.000144,2]
[337103240,1725432639496,-932.31,0.00014452,2]
[337103242,1725432639505,-150.0,0.00014454,2]
[337103244,1725432639515,-1514.02322118,0.00014456,2]
[337103246,1725432639525,-150.0,0.00014462,2]
[337103248,1725432639535,-150.47,0.00014466,2]
[337103250,1725432639544,-152.59925876,0.0001447,2]
[337103252,1725432639554,-358.52324324,0.0001447,2]
[337103254,1725432639563,-1425.4328104,0.0001447,2]
[337103256,1725432639573,-150.0,0.00014485,2]
[337103258,1725432639582,-150.0,0.00014485,2]
[337103259,1725432639592,-180.25,0.00014489,3]
[337103261,1725432639602,-540.79,0.00014489,3]
[337103263,1725432639614,-500.0,0.00014499,2]
[337103265,1725432639624,-500.0,0.00014499,2]
[337103267,1725432639633,-500.0,0.00014499,2]
[337103269,1725432639644,-500.0,0.00014499,2]
[337103271,1725432639653,-500.0,0.00014499,2]
[337103273,1725432639663,-500.0,0.00014499,2]
[337103274,1725432639673,-500.0,0.00014499,2]
[337103275,1725432639683,-500.0,0.00014499,2]
[337103276,1725432639692,-500.0,0.00014499,2]
[337103277,1725432639702,-500.0,0.00014499,2]
[337103278,1725432639712,-500.0,0.00014499,2]
[337103279,1725432639721,-500.0,0.00014499,2]
[337103280,1725432639730,-500.0,0.00014499,2]
[337103281,1725432639740,-500.0,0.00014499,2]
[337103282,1725432639749,-500.0,0.00014499,2]
[337103283,1725432639759,-500.0,0.00014499,2]
[337103284,1725432639769,-500.0,0.00014499,2]
[337103286,1725432639778,-500.0,0.00014499,2]
[337103288,1725432639788,-500.0,0.00014499,2]
[337103290,1725432639798,-500.0,0.00014499,2]
[337103292,1725432639808,-500.0,0.00014499,2]
[337103294,1725432639817,-500.0,0.00014499,2]
[337103296,1725432639827,-500.0,0.00014499,2]
[337103298,1725432639837,-500.0,0.00014499,2]
[337103300,1725432639846,-500.0,0.00014499,2]
[337103302,1725432639856,-500.0,0.00014499,2]
[337103304,1725432639865,-500.0,0.00014499,2]
[337103306,1725432639875,-500.0,0.00014499,2]
[337103308,1725432639885,-500.0,0.00014499,2]
[337103310,1725432639894,-500.0,0.00014499,2]
[337103312,1725432639904,-500.0,0.00014499,2]
[337103314,1725432639915,-500.0,0.00014499,2]
[337103316,1725432639924,-500.0,0.00014499,2]
[337103318,1725432639934,-500.0,0.00014499,2]
[337103320,1725432639944,-500.0,0.00014499,2]
[337103322,1725432639954,-500.0,0.00014499,2]
[337103324,1725432639964,-500.0,0.00014499,2]
[337103326,1725432639973,-500.0,0.00014499,2]
[337103328,1725432639983,-500.0,0.00014499,2]
[337103330,1725432639992,-500.0,0.00014499,2]
[337103331,1725432640002,-500.0,0.00014499,2]
[337103333,1725432640011,-500.0,0.00014499,2]
[337103335,1725432640021,-500.0,0.00014499,2]
[337103337,1725432640030,-500.0,0.00014499,2]
[337103339,1725432640039,-500.0,0.00014499,2]
[337103341,1725432640048,-500.9014667,0.00014499,2]
[337103343,1725432640058,-500.0,0.00014499,2]
[337103345,1725432640069,-500.0,0.00014499,2]
[337103347,1725432640078,-500.0,0.00014499,2]
[337103349,1725432640088,-541.1,0.00014499,2]
[337103351,1725432640101,-500.0,0.00014499,2]
[337103353,1725432640111,-500.0,0.00014499,2]
[337103355,1725432640121,-500.0,0.00014499,2]
[337103357,1725432640132,-500.0,0.00014499,2]
[337103359,1725432640143,-500.0,0.00014499,2]
[337103361,1725432640153,-500.0,0.00014499,2]
[337103363,1725432640162,-500.0,0.00014499,2]
[337103365,1725432640173,-500.0,0.00014499,2]
[337103367,1725432640183,-500.0,0.00014499,2]
[337103369,1725432640192,-539.65819121,0.00014499,2]
[337103371,1725432640201,-500.0,0.00014499,2]
[337103373,1725432640210,-500.0,0.00014499,2]
[337103375,1725432640220,-500.0,0.00014499,2]
[337103377,1725432640229,-168.37170326,0.00014499,2]
[337103379,1725432640238,-525.53,0.00014499,2]
[337103381,1725432640248,-500.0,0.00014499,2]
[337103383,1725432640257,-500.0,0.00014499,2]
[337103384,1725432640267,-500.0,0.00014499,2]
[337103386,1725432640276,-500.0,0.00014499,2]
[337103388,1725432640286,-500.0,0.00014499,2]
[337103390,1725432640295,-500.0,0.00014499,2]
[337103392,1725432640304,-500.0,0.00014499,2]
[337103394,1725432640314,-500.0,0.00014499,2]
[337103396,1725432640324,-500.0,0.00014499,2]
[337103398,1725432640334,-500.0,0.00014499,2]
[337103400,1725432640345,-500.0,0.00014499,2]
[337103402,1725432640355,-500.0,0.00014499,2]
[337103404,1725432640364,-500.0,0.00014499,2]
[337103406,1725432640374,-298.41676313,0.00014499,2]
[337103408,1725432640383,-500.0,0.00014499,2]
[337103410,1725432640393,-500.0,0.00014499,2]
[337103412,1725432640402,-500.0,0.00014499,2]
[337103414,1725432640411,-500.0,0.00014499,2]
[337103416,1725432640420,-500.0,0.00014499,2]
[337103418,1725432640429,-500.0,0.00014499,2]
[337103420,1725432640439,-500.0,0.00014499,2]
[337103422,1725432640448,-385.95314928,0.00014499,2]
[337103424,1725432640457,-500.0,0.00014499,2]
[337103426,1725432640466,-500.0,0.00014499,2]
[337103428,1725432640477,-500.0,0.00014499,2]
[337103430,1725432640487,-500.0,0.00014499,2]
[337103432,1725432640499,-500.0,0.00014499,2]
[337103434,1725432640510,-500.0,0.00014499,2]
[337103437,1725432640521,-500.0,0.00014499,2]
[337103439,1725432640531,-428.79264082,0.00014499,2]
[337103441,1725432640541,-5002.093128,0.00014499,2]
[337103443,1725432640551,-5002.093128,0.00014499,2]
[337103445,1725432640562,-5002.093128,0.00014499,2]
[337103447,1725432640572,-5002.093128,0.00014499,2]
[337103449,1725432640581,-27795.12002338,0.000145,2]
[337103451,1725432640590,-4704.11504812,0.000145,2]
[337103453,1725432640600,-4855.19,0.000145,5]
[337103455,1725432640609,-2985.8798008,0.000145,3]
[337103457,1725432640618,-150.0,0.000145,2]
[337103459,1725432640627,-5002.093128,0.000145,2]
[337103461,1725432640636,-5002.093128,0.000145,2]
[337103462,1725432640645,-150.0,0.00014502,2]
[337103464,1725432640655,-150.0,0.00014508,2]
[337103466,1725432640663,-150.0,0.00014509,2]
[337103468,1725432640673,-150.0,0.00014509,2]
[337103470,1725432640682,-1514.02322118,0.00014511,2]
[337103472,1725432640691,-150.0,0.00014518,2]
[337103474,1725432640701,-500.0,0.0001453,2]
[337103476,1725432640710,-500.0,0.0001453,2]
[337103478,1725432640720,-500.0,0.0001453,2]
[337103480,1725432640730,-500.0,0.0001453,2]
[337103482,1725432640739,-500.0,0.0001453,2]
[337103484,1725432640749,-500.0,0.0001453,2]
[337103486,1725432640759,-500.0,0.0001453,2]
[337103488,1725432640768,-151.0,0.0001453,2]
[337103490,1725432640777,-5002.093128,0.0001453,2]
[337103492,1725432640787,-5002.093128,0.0001453,2]
[337103494,1725432640796,-234.08,0.00014531,2]
[337103496,1725432640806,-500.0,0.00014531,2]
[337103497,1725432640815,-665.95,0.00014538,2]
[337103499,1725432640825,-151.6,0.00014544,2]
[337103501,1725432640834,-165.76968852,0.00014548,2]
[337103503,1725432640843,-500.0,0.00014548,2]
[337103505,1725432640853,-171.41435197,0.00014548,2]
[337103507,1725432640862,-500.0,0.00014548,2]
[337103509,1725432640871,-431.434715,0.00014548,2]
[337103511,1725432640881,-5002.093128,0.00014549,2]
[337103513,1725432640890,-5002.093128,0.00014549,2]
[337103515,1725432640900,-74645.8158317,0.00014549,2]
[337103517,1725432640909,-5002.093128,0.0001455,2]
[337103519,1725432640918,-5002.093128,0.0001455,2]
[337103521,1725432640929,-31102.4232632,0.0001455,2]
[337103523,1725432640938,-500.0,0.00014551,2]
[337103525,1725432640950,-500.0,0.00014551,2]
[337103526,1725432640960,-500.0,0.00014551,2]
[337103528,1725432640970,-500.0,0.00014551,2]
[337103530,1725432640979,-151.0,0.00014551,2]
[337103532,1725432640988,-5002.093128,0.00014551,2]
[337103534,1725432640999,-5002.093128,0.00014551,2]
[337103536,1725432641009,-43543.3925685,0.00014551,2]
[337103538,1725432641018,-593.58299956,0.00014551,2]
[337103541,1725432641029,-24881.9386106,0.00014552,2]
[337103543,1725432641038,-593.58299956,0.00014552,2]
[337103545,1725432641048,-151.6,0.00014552,2]
[337103546,1725432641057,-151.0,0.00014552,2]
[337103548,1725432641066,-5002.093128,0.00014552,2]
[337103550,1725432641075,-5002.093128,0.00014552,2]
[337103552,1725432641085,-500.0,0.00014553,2]
[337103554,1725432641095,-500.0,0.00014553,2]
[337103556,1725432641107,-500.0,0.00014553,2]
[337103559,1725432641116,-500.0,0.00014553,2]
[337103561,1725432641125,-297.73142333,0.00014553,2]
[337103563,1725432641135,-500.0,0.00014553,2]
[337103565,1725432641145,-500.0,0.00014553,2]
[337103567,1725432641155,-197.98,0.00014553,2]
[337103569,1725432641164,-5002.093128,0.00014553,2]
[337103570,1725432641175,-5002.093128,0.00014553,2]
[337103573,1725432641185,-18661.4539579,0.00014553,2]
[337103575,1725432641194,-593.58299956,0.00014553,2]
[337103577,1725432641204,-5002.093128,0.00014554,2]
[337103578,1725432641218,-5002.093134,0.00014554,2]
[337103581,1725432641228,-37322.9079158,0.00014554,2]
[337103583,1725432641238,-593.58299956,0.00014554,2]
[337103585,1725432641250,-593.58299956,0.00014558,2]
[337103587,1725432641261,-152.04937014,0.00014558,2]
[337103589,1725432641270,-2125.94788492,0.00014558,2]
[337103591,1725432641282,-500.0,0.00014558,2]
[337103593,1725432641292,-500.0,0.00014558,2]
[337103595,1725432641302,-500.0,0.00014558,2]
[337103597,1725432641312,-500.0,0.00014558,2]
[337103598,1725432641321,-4748.66399648,0.00014559,2]
[337103600,1725432641331,-151.6,0.00014559,2]
[337103602,1725432641340,-500.0,0.0001456,2]
[337103604,1725432641349,-500.0,0.0001456,2]
[337103606,1725432641359,-500.0,0.0001456,2]
[337103608,1725432641368,-500.0,0.0001456,2]
[337103610,1725432641377,-593.58299956,0.0001456,2]
[337103612,1725432641386,-665.95,0.00014561,2]
[337103614,1725432641395,-82765.55442289,0.00014561,5]
[337103616,1725432641404,-500.0,0.00014561,2]
[337103618,1725432641414,-500.0,0.00014561,2]
[337103620,1725432641423,-500.0,0.00014561,2]
[337103622,1725432641432,-500.0,0.00014561,2]
[337103624,1725432641441,-500.0,0.00014561,2]
[337103626,1725432641450,-500.0,0.00014561,2]
[337103627,1725432641459,-500.0,0.00014561,2]
[337103629,1725432641468,-157.03878965,0.00014561,2]
[337103631,1725432641477,-2329.827042,0.00014562,2]
[337103633,1725432641486,-6774.1069696,0.00014562,2]
[337103636,1725432641497,-35123.774994,0.00014562,2]
[337103638,1725432641508,-500.0,0.00014563,2]
[337103640,1725432641518,-500.0,0.00014563,2]
[337103642,1725432641528,-500.0,0.00014563,2]
[337103644,1725432641537,-500.0,0.00014563,2]
[337103646,1725432641548,-500.0,0.00014563,2]
[337103648,1725432641558,-500.0,0.00014563,2]
[337103650,1725432641567,-197.98,0.00014563,2]
[337103652,1725432641575,-500.0,0.00014563,2]
[337103654,1725432641585,-2115.0971,0.00014563,2]
[337103656,1725432641594,-500.0,0.00014563,2]
[337103657,1725432641603,-500.0,0.00014563,2]
[337103659,1725432641613,-500.0,0.00014563,2]
[337103661,1725432641622,-6157.1756336,0.00014563,2]
[337103663,1725432641632,-31818.7663712,0.00014563,2]
[337103665,1725432641641,-1900.3671581,0.00014564,2]
[337103666,1725432641651,-1685.6372161,0.00014564,2]
[337103668,1725432641661,-5540.2442976,0.00014564,2]
[337103670,1725432641670,-4923.3129616,0.00014564,2]
[337103671,1725432641679,-28513.7577483,0.00014564,2]
[337103672,1725432641688,-25208.7491254,0.00014564,2]
[337103673,1725432641698,-1514.02322118,0.00014567,2]
[337103674,1725432641707,-157.03878965,0.00014567,2]
[337103675,1725432641717,-500.0,0.00014568,2]
[337103676,1725432641727,-500.0,0.00014568,2]
[337103677,1725432641736,-665.95,0.00014568,2]
[337103678,1725432641746,-665.95,0.00014568,2]
[337103679,1725432641755,-500.0,0.00014568,2]
[337103680,1725432641765,-500.0,0.00014568,2]
[337103682,1725432641775,-500.0,0.00014568,2]
[337103684,1725432641784,-500.0,0.00014568,2]
[337103686,1725432641794,-500.0,0.00014568,2]
[337103688,1725432641803,-500.0,0.00014568,2]
[337103690,1725432641812,-500.0,0.00014568,2]
[337103692,1725432641822,-500.0,0.00014568,2]
[337103694,1725432641831,-500.0,0.00014568,2]
[337103696,1725432641841,-500.0,0.00014568,2]
[337103698,1725432641850,-500.0,0.00014568,2]
[337103700,1725432641859,-500.0,0.00014568,2]
[337103702,1725432641868,-500.0,0.00014568,2]
[337103703,1725432641877,-500.0,0.00014568,2]
[337103705,1725432641887,-500.0,0.00014568,2]
[337103707,1725432641896,-500.0,0.00014568,2]
[337103709,1725432641906,-500.0,0.00014568,2]
[337103711,1725432641916,-500.0,0.00014568,2]
[337103713,1725432641925,-500.0,0.00014568,2]
[337103714,1725432641934,-500.0,0.00014568,2]
[337103716,1725432641944,-197.98,0.00014568,2]
[337103718,1725432641954,-500.0,0.00014568,2]
[337103720,1725432641963,-500.0,0.00014568,2]
[337103722,1725432641973,-500.0,0.00014568,2]
[337103724,1725432641982,-500.0,0.00014568,2]
[337103726,1725432641992,-171.35418869,0.00014568,2]
[337103728,1725432642001,-157.03878965,0.00014568,2]
[337103730,1725432642011,-969.34261467,0.00014569,2]
[337103732,1725432642021,-534.57,0.00014569,2]
[337103734,1725432642030,-1660.14,0.00014569,2]
[337103736,1725432642040,-500.0,0.00014569,2]
[337103738,1725432642050,-1660.14,0.00014569,2]
[337103740,1725432642059,-500.0,0.00014569,2]
[337103742,1725432642068,-500.0,0.00014569,2]
[337103744,1725432642077,-500.0,0.00014569,2]
[337103746,1725432642086,-500.0,0.00014569,2]
[337103748,1725432642097,-500.0,0.00014569,2]
[337103749,1725432642108,-500.0,0.00014569,2]
[337103751,1725432642117,-500.0,0.00014569,2]
[337103753,1725432642126,-720.61,0.00014569,2]
[337103755,1725432642136,-500.0,0.00014569,2]
[337103757,1725432642146,-500.0,0.00014569,2]
[337103759,1725432642156,-813.69,0.00014569,2]
[337103761,1725432642165,-813.69,0.00014569,2]
[337103763,1725432642177,-686.13,0.00014569,2]
[337103765,1725432642186,-686.13,0.00014569,2]
[337103767,1725432642195,-531.5,0.00014569,2]
[337103769,1725432642205,-500.0,0.00014569,2]
[337103771,1725432642214,-531.5,0.00014569,2]
[337103773,1725432642224,-500.0,0.00014569,2]
[337103775,1725432642233,-500.0,0.00014569,2]
[337103777,1725432642242,-500.0,0.00014569,2]
[337103779,1725432642252,-500.0,0.00014569,2]
[337103781,1725432642261,-656.2,0.00014569,2]
[337103783,1725432642271,-656.2,0.00014569,2]
[337103785,1725432642280,-656.2,0.00014569,2]
[337103787,1725432642289,-500.0,0.00014569,2]
[337103789,1725432642299,-500.0,0.00014569,2]
[337103792,1725432642309,-502.01934265,0.00014569,2]
[337103794,1725432642318,-500.0,0.00014569,2]
[337103796,1725432642328,-500.0,0.00014569,2]
[337103798,1725432642337,-500.0,0.00014569,2]
[337103800,1725432642347,-500.0,0.00014569,2]
[337103802,1725432642356,-500.0,0.00014569,2]
[337103804,1725432642365,-500.0,0.00014569,2]
[337103806,1725432642375,-500.0,0.00014569,2]
[337103808,1725432642384,-500.0,0.00014569,2]
[337103810,1725432642394,-500.0,0.00014569,2]
[337103812,1725432642403,-500.0,0.00014569,2]
[337103813,1725432642412,-624.36,0.00014569,2]
[337103816,1725432642422,-624.36,0.00014569,2]
[337103817,1725432642431,-651.82,0.00014569,2]
[337103819,1725432642440,-500.0,0.00014569,2]
[337103821,1725432642450,-651.82,0.00014569,2]
[337103824,1725432642460,-500.0,0.00014569,2]
[337103826,1725432642469,-500.0,0.00014569,2]
[337103828,1725432642478,-500.0,0.00014569,2]
[337103830,1725432642488,-503.78151328,0.00014569,2]
[337103832,1725432642497,-500.0,0.00014569,2]
[337103834,1725432642506,-500.0,0.00014569,2]
[337103836,1725432642515,-500.0,0.00014569,2]
[337103839,1725432642525,-500.0,0.00014569,2]
[337103841,1725432642534,-500.0,0.00014569,2]
[337103844,1725432642543,-500.73758347,0.00014569,2]
[337103848,1725432642553,-652.2,0.00014569,2]
[337103850,1725432642562,-652.2,0.00014569,2]
[337103852,1725432642572,-302.1492928,0.00014569,2]
[337103854,1725432642581,-652.2,0.00014569,2]
[337103856,1725432642590,-500.0,0.00014569,2]
[337103858,1725432642600,-353.78060297,0.00014569,2]
[337103859,1725432642610,-500.0,0.00014569,2]
[337103861,1725432642619,-500.0,0.00014569,2]
[337103863,1725432642630,-500.0,0.00014569,2]
[337103865,1725432642639,-500.0,0.00014569,2]
[337103867,1725432642649,-500.0,0.00014569,2]
[337103869,1725432642659,-500.0,0.00014569,2]
[337103871,1725432642668,-500.0,0.00014569,2]
[337103873,1725432642678,-500.0,0.00014569,2]
[337103875,1725432642688,-500.0,0.00014569,2]
[337103877,1725432642700,-500.0,0.00014569,2]
[337103879,1725432642710,-500.0,0.00014569,2]
[337103881,1725432642721,-500.0,0.00014569,2]
[337103883,1725432642731,-500.0,0.00014569,2]
[337103885,1725432642741,-500.0,0.00014569,2]
[337103887,1725432642751,-500.0,0.00014569,2]
[337103889,1725432642761,-500.0,0.00014569,2]
[337103892,1725432642771,-500.0,0.00014569,2]
[337103894,1725432642782,-529.44,0.00014569,2]
[337103895,1725432642793,-500.0,0.00014569,2]
[337103897,1725432642803,-534.78812119,0.00014569,2]
[337103898,1725432642813,-502.67579663,0.00014569,2]
[337103900,1725432642823,-500.0,0.00014569,2]
[337103902,1725432642832,-498.18687316,0.00014569,2]
[337103904,1725432642842,-549.34489672,0.00014569,2]
[337103906,1725432642852,-500.0,0.00014569,2]
[337103908,1725432642862,-500.0,0.00014569,2]
[337103910,1725432642872,-500.0,0.00014569,2]
[337103912,1725432642881,-438.10383978,0.00014569,2]
[337103914,1725432642891,-690.43,0.00014569,2]
[337103916,1725432642901,-500.0,0.00014569,2]
[337103918,1725432642911,-500.0,0.00014569,2]
[337103920,1725432642920,-690.43,0.00014569,2]
[337103922,1725432642930,-690.43,0.00014569,2]
[337103924,1725432642940,-522.79,0.00014569,2]
[337103926,1725432642951,-582.31243982,0.00014569,2]
[337103927,1725432642960,-500.74523888,0.00014569,2]
[337103929,1725432642970,-606.35,0.00014569,2]
[337103931,1725432642980,-606.35,0.00014569,2]
[337103934,1725432642990,-500.0,0.00014569,2]
[337103935,1725432643000,-500.0,0.00014569,2]
[337103937,1725432643010,-1475.6,0.00014569,2]
[337103939,1725432643019,-500.0,0.00014569,2]
[337103941,1725432643029,-1475.6,0.00014569,2]
[337103943,1725432643039,-1475.6,0.00014569,2]
[337103945,1725432643048,-677.31,0.00014569,2]
[337103947,1725432643058,-677.31,0.00014569,2]
[337103949,1725432643068,-500.0,0.00014569,2]
[337103951,1725432643078,-500.0,0.00014569,2]
[337103953,1725432643087,-500.0,0.00014569,2]
[337103955,1725432643098,-503.25472672,0.00014569,2]
[337103957,1725432643109,-500.0,0.00014569,2]
[337103959,1725432643118,-567.39,0.00014569,2]
[337103961,1725432643128,-567.39,0.00014569,2]
[337103963,1725432643139,-500.0,0.00014569,2]
[337103965,1725432643149,-500.0,0.00014569,2]
[337103967,1725432643159,-500.0,0.00014569,2]
[337103969,1725432643168,-500.0,0.00014569,2]
[337103971,1725432643180,-500.0,0.00014569,2]
[337103973,1725432643190,-500.0,0.00014569,2]
[337103993,1725432643201,-385.35048188,0.00014569,2]
[337103997,1725432643416,-511.18,0.00014569,2]
[337103999,1725432643427,-500.0,0.00014569,2]
[337104000,1725432643437,-500.0,0.00014569,2]
[337104002,1725432643447,-500.0,0.00014569,2]
[337104004,1725432643457,-511.18,0.00014569,2]
[337104006,1725432643467,-500.0,0.00014569,2]
[337104008,1725432643477,-511.18,0.00014569,2]
[337104010,1725432643487,-500.0,0.00014569,2]
[337104012,1725432643496,-500.0,0.00014569,2]
[337104014,1725432643507,-500.0,0.00014569,2]
[337104016,1725432643516,-500.0,0.00014569,2]
[337104018,1725432643526,-555.74,0.00014569,2]
[337104020,1725432643535,-500.0,0.00014569,2]
[337104022,1725432643545,-500.0,0.00014569,2]
[337104023,1725432643554,-500.0,0.00014569,2]
[337104025,1725432643564,-555.74,0.00014569,2]
[337104026,1725432643573,-500.0,0.00014569,2]
[337104027,1725432643583,-500.0,0.00014569,2]
[337104028,1725432643593,-555.74,0.00014569,2]
[337104029,1725432643603,-500.0,0.00014569,2]
[337104030,1725432643613,-500.0,0.00014569,2]
[337104031,1725432643622,-500.0,0.00014569,2]
[337104032,1725432643631,-500.0,0.00014569,2]
[337104033,1725432643641,-500.0,0.00014569,2]
[337104034,1725432643651,-500.0,0.00014569,2]
[337104035,1725432643660,-500.0,0.00014569,2]
[337104036,1725432643670,-500.0,0.00014569,2]
[337104037,1725432643679,-500.0,0.00014569,2]
[337104039,1725432643689,-500.0,0.00014569,2]
[337104041,1725432643699,-500.0,0.00014569,2]
[337104043,1725432643709,-500.0,0.00014569,2]
[337104045,1725432643719,-500.0,0.00014569,2]
[337104046,1725432643728,-500.0,0.00014569,2]
[337104049,1725432643738,-500.0,0.00014569,2]
[337104051,1725432643748,-1529.74,0.00014569,2]
[337104053,1725432643758,-500.0,0.00014569,2]
[337104055,1725432643768,-1529.74,0.00014569,2]
[337104057,1725432643777,-500.0,0.00014569,2]
[337104059,1725432643787,-1529.74,0.00014569,2]
[337104061,1725432643797,-958.16,0.00014569,2]
[337104063,1725432643806,-958.16,0.00014569,2]
[337104065,1725432643816,-958.16,0.00014569,2]
[337104066,1725432643827,-500.0,0.00014569,2]
[337104068,1725432643838,-561.46,0.00014569,2]
[337104070,1725432643848,-500.0,0.00014569,2]
[337104072,1725432643858,-500.0,0.00014569,2]
[337104074,1725432643868,-735.03,0.00014569,2]
[337104076,1725432643878,-500.0,0.00014569,2]
[337104078,1725432643889,-500.0,0.00014569,2]
[337104080,1725432643899,-500.0,0.00014569,2]
[337104082,1725432643909,-540.265604,0.00014569,2]
[337104084,1725432643919,-245.39878873,0.00014569,2]
[337104086,1725432643928,-500.0,0.00014569,2]
[337104088,1725432643938,-500.0,0.00014569,2]
[337104090,1725432643948,-500.0,0.00014569,2]
[337104092,1725432643958,-500.0,0.00014569,2]
[337104094,1725432643967,-500.0,0.00014569,2]
[337104096,1725432643977,-500.0,0.00014569,2]
[337104098,1725432643987,-722.1,0.00014569,2]
[337104100,1725432643997,-500.0,0.00014569,2]
[337104102,1725432644006,-722.1,0.00014569,2]
[337104104,1725432644016,-722.1,0.00014569,2]
[337104106,1725432644026,-500.0,0.00014569,2]
[337104108,1725432644036,-726.09,0.00014569,2]
[337104110,1725432644046,-726.09,0.00014569,2]
[337104112,1725432644056,-726.09,0.00014569,2]
[337104114,1725432644066,-500.0,0.00014569,2]
[337104116,1725432644076,-500.0,0.00014569,2]
[337104118,1725432644086,-500.0,0.00014569,2]
[337104120,1725432644100,-500.0,0.00014569,2]
[337104122,1725432644119,-500.0,0.00014569,2]
[337104124,1725432644128,-500.0,0.00014569,2]
[337104126,1725432644138,-529.65,0.00014569,2]
[337104128,1725432644148,-500.0,0.00014569,2]
[337104130,1725432644157,-529.65,0.00014569,2]
[337104132,1725432644167,-500.0,0.00014569,2]
[337104134,1725432644176,-500.0,0.00014569,2]
[337104136,1725432644185,-500.0,0.00014569,2]
[337104138,1725432644195,-854.81,0.00014569,2]
[337104140,1725432644213,-500.0,0.00014569,2]
[337104142,1725432644223,-854.81,0.00014569,2]
[337104143,1725432644232,-854.81,0.00014569,2]
[337104145,1725432644242,-1113.33,0.00014569,2]
[337104147,1725432644251,-1113.33,0.00014569,2]
[337104149,1725432644261,-500.0,0.00014569,2]
[337104151,1725432644270,-500.0,0.00014569,2]
[337104153,1725432644279,-1113.33,0.00014569,2]
[337104155,1725432644288,-500.0,0.00014569,2]
[337104157,1725432644299,-500.0,0.00014569,2]
[337104159,1725432644308,-500.0,0.00014569,2]
[337104161,1725432644318,-500.0,0.00014569,2]
[337104163,1725432644328,-624.81,0.00014569,2]
[337104165,1725432644338,-624.81,0.00014569,2]
[337104167,1725432644347,-500.0,0.00014569,2]
[337104169,1725432644357,-561.67,0.00014569,2]
[337104171,1725432644367,-561.67,0.00014569,2]
[337104172,1725432644376,-561.67,0.00014569,2]
[337104174,1725432644385,-4339.09,0.00014569,2]
[337104176,1725432644395,-500.0,0.00014569,2]
[337104178,1725432644405,-500.0,0.00014569,2]
[337104180,1725432644415,-500.0,0.00014569,2]